fUSD/lending_fUSD_20250906
["ID","MTS","AMOUNT","RATE_DAILY","PERIOD"]
[383819559,1757131838127,-400.0,0.00067999,120]
[383819560,1757131838136,-400.0,0.00067999,120]
[383819561,1757131838146,-400.0,0.00067999,120]
[383819562,1757131838155,-400.0,0.00067999,120]
[383819563,1757131838164,-400.0,0.00067999,120]
[383819564,1757131838173,-400.0,0.00067999,120]
[383819565,1757131838184,-400.0,0.00067999,120]
[383819567,1757131838193,-400.0,0.00067999,120]
[383819568,1757131838202,-400.0,0.00067999,120]
[383819570,1757131838211,-400.0,0.00067999,120]
[383819572,1757131838220,-400.0,0.00067999,120]
[383819573,1757131838229,-400.0,0.00067999,120]
[383819575,1757131838238,-400.0,0.00067999,120]
[383819577,1757131838247,-400.0,0.00067999,120]
[383819579,1757131838256,-400.0,0.00067999,120]
[383819581,1757131838265,-400.0,0.00067999,120]
[383819582,1757131838275,-400.0,0.00067999,120]
[383819584,1757131838284,-400.0,0.00067999,120]
[383819586,1757131838293,-400.0,0.00067999,120]
[383819588,1757131838302,-400.0,0.00067999,120]
[383819589,1757131838311,-400.0,0.00067999,120]
[383819591,1757131838321,-902.15,0.00067999,120]
[383819593,1757131838330,-902.15,0.00067999,120]
[383819595,1757131838339,-902.15,0.00067999,120]
[383819597,1757131838348,-902.15,0.00067999,120]
[383819598,1757131838357,-902.15,0.00067999,120]
[383819600,1757131838366,-902.15,0.00067999,120]
[383819602,1757131838376,-902.15,0.00067999,120]
[383819603,1757131838385,-902.15,0.00067999,120]
[383819605,1757131838394,-400.0,0.00067999,120]
[383819607,1757131838403,-400.0,0.00067999,120]
[383819609,1757131838412,-267.43426058,0.00067999,120]
[383819611,1757131838422,-6877.19,0.00067999,120]
[383819613,1757131838431,-6877.19,0.00067999,120]
[383819614,1757131838440,-6877.19,0.00067999,120]
[383819616,1757131838450,-6877.19,0.00067999,120]
[383819618,1757131838459,-6877.19,0.00067999,120]
[383819619,1757131838468,-6877.19,0.00067999,120]
[383819621,1757131838477,-400.0,0.00067999,120]
[383819623,1757131838487,-6877.19,0.00067999,120]
[383819625,1757131838497,-400.0,0.00067999,120]
[383819627,1757131838506,-400.0,0.00067999,120]
[383819628,1757131838514,-400.0,0.00067999,120]
[383819630,1757131838523,-400.0,0.00067999,120]
[383819632,1757131838532,-400.0,0.00067999,120]
[383819634,1757131838541,-400.0,0.00067999,120]
[383819635,1757131838550,-174.7050752,0.00067999,120]
[383819637,1757131838559,-400.0,0.00067999,120]
[383819639,1757131838574,-400.0,0.00067999,120]
[383819641,1757131838583,-400.0,0.00067999,120]
[383819643,1757131838592,-151.78234544,0.00067999,120]
[383819645,1757131838601,-400.0,0.00067999,120]
[383819646,1757131838611,-400.0,0.00067999,120]
[383819648,1757131838620,-400.0,0.00067999,120]
[383819650,1757131838629,-400.0,0.00067999,120]
[383819652,1757131838638,-400.0,0.00067999,120]
[383819654,1757131838647,-400.0,0.00067999,120]
[383819655,1757131838656,-165.57874675,0.00067999,120]
[383819657,1757131838665,-400.0,0.00067999,120]
[383819659,1757131838675,-400.0,0.00067999,120]
[383819661,1757131838684,-300.0,0.00067999,30]
[383819663,1757131838694,-20802.963685,0.00068,56]
[383819667,1757131838733,-1806321.75,0.00068,120]
[383819669,1757131838742,-1036.80335101,0.00068,120]
[383819671,1757131838752,-151.0,0.00068,120]
[383819673,1757131838761,-151.0,0.00068,120]
[383819675,1757131838770,-151.0,0.00068,10]
[383819677,1757131838779,-151.0,0.00068,120]
[383819679,1757131838789,-151.0,0.00068,2]
[383819681,1757131838800,-601.76855,0.00068,120]
[383819682,1757131838809,-601.76855,0.00068,120]
[383819684,1757131838818,-601.76855,0.00068,120]
[383819686,1757131838828,-601.76855,0.00068,120]
[383819688,1757131838836,-151.0,0.00068,120]
[383819690,1757131838845,-151.0,0.00068,120]
[383819691,1757131838854,-182.273875,0.00068,120]
[383819693,1757131838864,-448.448159,0.00068,120]
[383819695,1757131838873,-448.448159,0.00068,120]
[383819697,1757131838883,-448.448159,0.00068,120]
[383819699,1757131838891,-448.448159,0.00068,120]
[383819700,1757131838900,-151.307591,0.00068,120]
[383819702,1757131838910,-4758.255128,0.00068,30]
[383819704,1757131838920,-151.0,0.00068,60]
[383819706,1757131838933,-4758.255128,0.00068,30]
[383819708,1757131838943,-151.0,0.00068,60]
[383819710,1757131838952,-4758.255128,0.00068,30]
[383819711,1757131838962,-4758.255128,0.00068,30]
[383819713,1757131838971,-445.563269,0.00068,120]
[383819715,1757131838981,-445.563269,0.00068,120]
[383819717,1757131838996,-445.563269,0.00068,120]
[383819719,1757131839006,-445.563269,0.00068,120]
[383819721,1757131839015,-151.0,0.00068,120]
[383819723,1757131839025,-151.0,0.00068,120]
[383819725,1757131839035,-151.0,0.00068,120]
[383819726,1757131839046,-151.0,0.00068,120]
[383819728,1757131839056,-159.94113,0.00068,120]
[383819730,1757131839065,-192.498229,0.00068,120]
[383819732,1757131839075,-192.498229,0.00068,120]
[383819734,1757131839085,-192.498229,0.00068,120]
[383819736,1757131839095,-192.498229,0.00068,120]
[383819737,1757131839104,-151.0,0.00068,120]
[383819739,1757131839114,-151.0,0.00068,120]
[383819741,1757131839123,-151.0,0.00068,120]
[383819743,1757131839132,-151.0,0.00068,120]
[383819745,1757131839142,-151.0,0.00068,120]
[383819747,1757131839151,-151.0,0.00068,30]
[383819748,1757131839160,-151.0,0.00068,30]
[383819750,1757131839170,-151.0,0.00068,120]
[383819752,1757131839180,-160.0,0.00068,120]
[383819754,1757131839189,-160.0,0.00068,120]
[383819756,1757131839199,-160.0,0.00068,120]
[383819757,1757131839207,-160.0,0.00068,120]
[383819759,1757131839217,-160.0,0.00068,120]
[383819761,1757131839227,-160.0,0.00068,120]
[383819763,1757131839236,-160.0,0.00068,120]
[383819765,1757131839246,-160.0,0.00068,120]
[383819767,1757131839255,-160.0,0.00068,120]
[383819769,1757131839264,-160.0,0.00068,120]
[383819771,1757131839273,-160.0,0.00068,120]
[383819773,1757131839281,-160.0,0.00068,120]
[383819775,1757131839290,-160.0,0.00068,120]
[383819777,1757131839300,-160.0,0.00068,120]
[383819779,1757131839309,-160.0,0.00068,120]
[383819780,1757131839317,-160.0,0.00068,120]
[383819781,1757131839326,-218.043565,0.00068,120]
[383819782,1757131839335,-168.07,0.00068079,120]
[383819783,1757131839344,-11991.92491303,0.00068121,15]
[383819784,1757131839353,-11991.92491303,0.00068344,15]
[383819785,1757131839362,-8347.61465716,0.00068391,15]
[383819786,1757131839371,-193.0,0.000685,120]
[383819787,1757131839380,-11991.92491303,0.00068566,15]
[383819788,1757131839388,-199.0,0.00068684,47]
[383819789,1757131839397,-11991.92491303,0.00068788,15]
[383819790,1757131839406,-237.4694658,0.00068821,120]
[383819791,1757131839415,-400.0,0.00068832,120]
[383819792,1757131839423,-400.0,0.00068832,120]
[383819793,1757131839432,-628.52,0.00068832,120]
[383819794,1757131839441,-3341.04,0.00068832,120]
[383819795,1757131839450,-400.0,0.00068832,120]
[383819796,1757131839460,-407.50102174,0.00068832,120]
[383819797,1757131839469,-6877.19,0.00068832,120]
[383819798,1757131839478,-3509.9266597,0.0006888,120]
[383819799,1757131839487,-151.75,0.0006899,120]
[383819801,1757131839497,-300.0,0.00068999,60]
[383819802,1757131839506,-243648.4420987,0.00069,120]
[383819804,1757131839515,-75649.15895174,0.00069,120]
[383819806,1757131839524,-218.04,0.00069,120]
[383819808,1757131839533,-2282.37146614,0.00069,120]
[383819810,1757131839542,-11991.92491303,0.00069011,15]
[383819813,1757131839551,-502.73515188,0.00069073,15]
[383819815,1757131839560,-11991.92491303,0.00069233,15]
[383819817,1757131839573,-500.85468017,0.00069273,15]
[383819819,1757131839582,-400.0,0.00069299,120]
[383819821,1757131839591,-400.0,0.00069299,120]
[383819823,1757131839600,-389.88333598,0.00069299,120]
[383819825,1757131839610,-372.75801165,0.00069299,120]
[383819827,1757131839620,-400.0,0.00069299,120]
[383819829,1757131839629,-400.0,0.00069299,120]
[383819831,1757131839639,-400.0,0.00069299,120]
[383819833,1757131839649,-400.0,0.00069299,120]
[383819835,1757131839659,-902.15,0.00069299,120]
[383819837,1757131839668,-29816.82681511,0.000693,2]
[383819839,1757131839677,-151.0,0.000693,120]
[383819841,1757131839686,-448.448159,0.000693,120]
[383819843,1757131839695,-448.448159,0.000693,120]
[383819845,1757131839704,-448.448159,0.000693,120]
[383819847,1757131839713,-448.448159,0.000693,120]
[383819849,1757131839722,-4758.255128,0.000693,30]
[383819851,1757131839732,-151.0,0.000693,60]
[383819853,1757131839741,-4758.255128,0.000693,30]
[383819855,1757131839750,-151.0,0.000693,60]
[383819857,1757131839760,-4758.255128,0.000693,30]
[383819859,1757131839769,-4758.255128,0.000693,30]
[383819861,1757131839778,-445.563269,0.000693,120]
[383819864,1757131839787,-445.563269,0.000693,120]
[383819866,1757131839796,-445.563269,0.000693,120]
[383819868,1757131839806,-445.563269,0.000693,120]
[383819870,1757131839816,-151.0,0.000693,120]
[383819872,1757131839825,-151.0,0.000693,120]
[383819874,1757131839834,-151.0,0.000693,120]
[383819876,1757131839843,-151.0,0.000693,120]
[383819878,1757131839853,-192.498229,0.000693,120]
[383819880,1757131839863,-192.498229,0.000693,120]
[383819882,1757131839872,-192.498229,0.000693,120]
[383819884,1757131839881,-192.498229,0.000693,120]
[383819886,1757131839890,-151.0,0.000693,120]
[383819888,1757131839899,-151.0,0.000693,120]
[383819890,1757131839908,-151.0,0.000693,120]
[383819892,1757131839917,-151.0,0.000693,120]
[383819894,1757131839927,-182.512392,0.000693,120]
[383819896,1757131839936,-151.0,0.000693,30]
[383819898,1757131839945,-151.0,0.000693,30]
[383819900,1757131839955,-185.592939,0.000693,120]
[383819902,1757131839964,-150.0,0.00069369,120]
[383819904,1757131839972,-199.0,0.00069369,49]
[383819906,1757131839983,-151.0,0.00069369,2]
[383819908,1757131839993,-601.76855,0.00069369,120]
[383819910,1757131840002,-601.76855,0.00069369,120]
[383819912,1757131840012,-601.76855,0.00069369,120]
[383819914,1757131840021,-601.76855,0.00069369,120]
[383819916,1757131840030,-151.0,0.00069369,120]
[383819918,1757131840040,-11991.92491303,0.00069455,15]
[383819919,1757131840050,-151.0,0.00069473,120]
[383819922,1757131840059,-151.0,0.00069473,120]
[383819925,1757131840069,-151.0,0.00069473,120]
[383819928,1757131840078,-153.60255,0.00069473,10]
[383819931,1757131840087,-289.88589,0.00069473,120]
[383819933,1757131840097,-177.55,0.00069655,2]
[383819935,1757131840106,-11991.92491303,0.00069678,15]
[383819937,1757131840115,-386.14770535,0.00069696,2]
[383819939,1757131840124,-25800.52055881,0.000697,73]
[383819941,1757131840134,-400.0,0.00069775,120]
[383819943,1757131840143,-400.0,0.00069775,120]
[383819946,1757131840153,-400.0,0.00069775,120]
[383819948,1757131840163,-400.0,0.00069775,120]
[383819950,1757131840172,-749.63,0.00069775,120]
[383819952,1757131840181,-400.0,0.00069775,120]
[383819954,1757131840190,-400.0,0.00069775,120]
[383819956,1757131840199,-469.424798,0.0006979,120]
[383819958,1757131840208,-469.424798,0.0006979,120]
[383819960,1757131840217,-469.424798,0.0006979,120]
[383819962,1757131840226,-469.424798,0.0006979,120]
[383819964,1757131840236,-170.99046622,0.00069793,120]
[383819966,1757131840245,-300.0,0.00069795,60]
[383819968,1757131840254,-400.0,0.00069795,120]
[383819971,1757131840263,-400.0,0.00069795,120]
[383819973,1757131840273,-902.15,0.00069795,120]
[383819974,1757131840282,-232208.2917,0.00069796,120]
[383819977,1757131840291,-151.0,0.00069796,120]
[383819979,1757131840300,-155.316849,0.00069796,120]
[383819981,1757131840310,-151.0,0.00069796,2]
[383819983,1757131840319,-601.76855,0.00069796,120]
[383819985,1757131840329,-601.76855,0.00069796,120]
[383819987,1757131840338,-601.76855,0.00069796,120]
[383819990,1757131840348,-601.76855,0.00069796,120]
[383819991,1757131840357,-151.0,0.00069796,120]
[383819994,1757131840367,-151.0,0.00069796,120]
[383819996,1757131840376,-448.448159,0.00069796,120]
[383819998,1757131840385,-448.448159,0.00069796,120]
[383819999,1757131840395,-448.448159,0.00069796,120]
[383820001,1757131840404,-448.448159,0.00069796,120]
[383820003,1757131840413,-4758.255128,0.00069796,30]
[383820006,1757131840423,-151.0,0.00069796,60]
[383820008,1757131840433,-4758.255128,0.00069796,30]
[383820010,1757131840445,-224.810867,0.00069796,60]
[383820012,1757131840454,-4758.255128,0.00069796,30]
[383820014,1757131840465,-4758.255128,0.00069796,30]
[383820016,1757131840474,-445.563269,0.00069796,120]
[383820017,1757131840483,-445.563269,0.00069796,120]
[383820019,1757131840493,-445.563269,0.00069796,120]
[383820021,1757131840502,-445.563269,0.00069796,120]
[383820023,1757131840511,-180.954707,0.00069796,120]
[383820025,1757131840521,-151.0,0.00069796,120]
[383820027,1757131840530,-151.0,0.00069796,120]
[383820029,1757131840539,-151.0,0.00069796,120]
[383820031,1757131840549,-192.498229,0.00069796,120]
[383820033,1757131840558,-192.498229,0.00069796,120]
[383820035,1757131840572,-192.498229,0.00069796,120]
[383820037,1757131840581,-192.498229,0.00069796,120]
[383820039,1757131840591,-151.0,0.00069796,120]
[383820042,1757131840600,-151.0,0.00069796,120]
[383820044,1757131840610,-151.0,0.00069796,120]
[383820046,1757131840620,-151.0,0.00069796,120]
[383820048,1757131840630,-151.0,0.00069796,30]
[383820050,1757131840639,-151.0,0.00069796,30]
[383820052,1757131840648,-151.0,0.00069804,120]
[383820054,1757131840658,-151.0,0.00069804,120]
[383820056,1757131840667,-312.29831908,0.0006983,120]
[383820058,1757131840677,-401.55,0.0006983,120]
[383820060,1757131840686,-628.52,0.0006983,120]
[383820062,1757131840695,-3341.04,0.0006983,120]
[383820064,1757131840704,-400.0,0.0006983,120]
[383820066,1757131840713,-6877.19,0.0006983,120]
[383820067,1757131840723,-151.0,0.00069831,120]
[383820070,1757131840733,-152.980544,0.00069831,120]
[383820072,1757131840743,-151.0,0.00069831,120]
[383820074,1757131840753,-151.0,0.00069831,120]
[383820076,1757131840762,-151.0,0.00069831,120]
[383820078,1757131840771,-248.559,0.00069831,120]
[383820080,1757131840780,-151.0,0.00069831,120]
[383820082,1757131840789,-153.733214,0.00069831,120]
[383820083,1757131840799,-151.0,0.00069831,120]
[383820086,1757131840808,-151.0,0.00069831,120]
[383820088,1757131840817,-169.248279,0.00069831,120]
[383820090,1757131840827,-169.248279,0.00069831,120]
[383820092,1757131840836,-169.248279,0.00069831,120]
[383820094,1757131840845,-169.248279,0.00069831,120]
[383820096,1757131840854,-400.0,0.00069876,120]
[383820098,1757131840864,-400.0,0.00069876,120]
[383820100,1757131840873,-197.0,0.00069895,120]
[383820102,1757131840882,-402.52317558,0.00069895,120]
[383820103,1757131840892,-400.79688209,0.00069895,120]
[383820105,1757131840902,-500.0,0.00069895,120]
[383820107,1757131840911,-401.78023214,0.00069895,120]
[383820109,1757131840920,-401.12064936,0.00069895,120]
[383820111,1757131840930,-400.0,0.00069895,120]
[383820113,1757131840939,-400.0,0.00069895,120]
[383820116,1757131840948,-500.0,0.00069895,120]
[383820118,1757131840958,-500.0,0.00069895,120]
[383820120,1757131840967,-400.0,0.00069895,120]
[383820121,1757131840976,-400.0,0.00069895,120]
[383820124,1757131840986,-380.98683978,0.00069895,120]
[383820126,1757131840995,-400.0,0.00069895,120]
[383820128,1757131841005,-400.0,0.00069895,120]
[383820130,1757131841014,-400.0,0.00069895,120]
[383820132,1757131841023,-308.63052062,0.00069895,120]
[383820134,1757131841032,-400.0,0.00069895,120]
[383820136,1757131841042,-400.0,0.00069895,120]
[383820138,1757131841052,-400.0,0.00069895,120]
[383820140,1757131841061,-400.0,0.00069895,120]
[383820142,1757131841071,-391.14589275,0.00069895,120]
[383820144,1757131841080,-218.27863014,0.00069896,120]
[383820146,1757131841090,-400.0,0.00069896,120]
[383820148,1757131841099,-413.86976103,0.00069896,120]
[383820150,1757131841108,-400.0,0.00069896,120]
[383820152,1757131841117,-400.0,0.00069896,120]
[383820154,1757131841127,-400.0,0.00069896,120]
[383820156,1757131841136,-749.63,0.00069896,120]
[383820158,1757131841146,-400.0,0.00069896,120]
[383820160,1757131841155,-400.0,0.00069896,120]
[383820162,1757131841164,-400.0,0.00069896,120]
[383820164,1757131841174,-628.52,0.00069896,120]
[383820166,1757131841183,-3341.04,0.00069896,120]
[383820168,1757131841192,-400.0,0.00069896,120]
[383820170,1757131841203,-400.0,0.00069896,120]
[383820172,1757131841213,-6877.19,0.00069896,120]
[383820174,1757131841222,-1000.0,0.00069897,120]
[383820176,1757131841232,-151.0,0.00069897,120]
[383820178,1757131841242,-151.0,0.00069897,120]
[383820180,1757131841251,-294.506924,0.00069897,120]
[383820182,1757131841260,-151.0,0.00069897,120]
[383820184,1757131841270,-151.0,0.00069897,120]
[383820186,1757131841279,-151.0,0.00069897,120]
[383820188,1757131841288,-257.0,0.00069897,5]
[383820190,1757131841298,-151.0,0.00069897,120]
[383820192,1757131841307,-151.0,0.00069897,120]
[383820194,1757131841316,-151.0,0.00069897,120]
[383820196,1757131841326,-151.0,0.00069897,120]
[383820198,1757131841336,-193.943864,0.00069897,120]
[383820200,1757131841345,-151.0,0.00069897,120]
[383820202,1757131841354,-151.0,0.00069897,120]
[383820204,1757131841363,-469.424798,0.00069897,120]
[383820207,1757131841373,-469.424798,0.00069897,120]
[383820209,1757131841383,-469.424798,0.00069897,120]
[383820211,1757131841392,-469.424798,0.00069897,120]
[383820213,1757131841402,-169.248279,0.00069897,120]
[383820214,1757131841411,-169.248279,0.00069897,120]
[383820217,1757131841420,-169.248279,0.00069897,120]
[383820219,1757131841430,-169.248279,0.00069897,120]
[383820221,1757131841439,-205.643086,0.00069897,120]
[383820223,1757131841448,-360.10802821,0.00069898,120]
[383820225,1757131841458,-1000.0,0.00069899,30]
[383820227,1757131841467,-928.50077606,0.00069899,11]
[383820229,1757131841476,-258.65989322,0.000699,120]
[383820231,1757131841486,-928.50077606,0.000699,11]
[383820233,1757131841495,-757.11937309,0.000699,2]
[383820234,1757131841505,-8347.61465716,0.000699,15]
[383820237,1757131841515,-201.56406906,0.000699,15]
[383820239,1757131841524,-188.41023022,0.000699,120]
[383820240,1757131841533,-594.20437314,0.000699,2]
[383820243,1757131841543,-299.48175972,0.000699,2]
[383820244,1757131841553,-1849.69015736,0.000699,2]
[383820246,1757131841564,-1514.96001522,0.000699,30]
[383820249,1757131841576,-371.17605533,0.00069978,7]
[383820251,1757131841585,-300.0,0.00069986,60]
[383820253,1757131841594,-400.0,0.00069986,120]
[383820255,1757131841604,-902.15,0.00069986,120]
[383820257,1757131841614,-300.0,0.00069987,60]
[383820259,1757131841623,-300.0,0.00069987,60]
[383820261,1757131841632,-400.0,0.00069987,120]
[383820263,1757131841644,-400.0,0.00069987,120]
[383820265,1757131841654,-331.45685875,0.00069987,120]
[383820267,1757131841665,-151.0,0.00069987,120]
[383820269,1757131841674,-400.0,0.00069987,120]
[383820271,1757131841683,-400.0,0.00069987,120]
[383820273,1757131841693,-400.0,0.00069987,120]
[383820275,1757131841702,-165.55,0.00069987,120]
[383820277,1757131841712,-400.0,0.00069987,120]
[383820279,1757131841721,-400.0,0.00069987,120]
[383820281,1757131841731,-400.0,0.00069987,120]
[383820283,1757131841741,-400.0,0.00069987,120]
[383820285,1757131841751,-400.0,0.00069987,120]
[383820287,1757131841761,-400.0,0.00069987,120]
[383820289,1757131841771,-400.0,0.00069987,120]
[383820291,1757131841780,-400.0,0.00069987,120]
[383820293,1757131841789,-749.63,0.00069987,120]
[383820295,1757131841798,-749.63,0.00069987,120]
[383820297,1757131841807,-749.63,0.00069987,120]
[383820299,1757131841816,-749.63,0.00069987,120]
[383820301,1757131841825,-400.0,0.00069987,120]
[383820303,1757131841835,-369.71670894,0.00069987,120]
[383820305,1757131841844,-151.0,0.00069987,2]
[383820307,1757131841854,-601.76855,0.00069987,120]
[383820309,1757131841867,-601.76855,0.00069987,120]
[383820311,1757131841876,-601.76855,0.00069987,120]
[383820313,1757131841885,-601.76855,0.00069987,120]
[383820315,1757131841895,-400.0,0.00069987,120]
[383820318,1757131841904,-400.0,0.00069987,120]
[383820319,1757131841914,-400.0,0.00069987,120]
[383820320,1757131841923,-151.0,0.00069987,120]
[383820321,1757131841933,-151.0,0.00069987,120]
[383820322,1757131841942,-448.448159,0.00069987,120]
[383820323,1757131841952,-448.448159,0.00069987,120]
[383820324,1757131841963,-448.448159,0.00069987,120]
[383820325,1757131841973,-448.448159,0.00069987,120]
[383820326,1757131841982,-4758.255128,0.00069987,30]
[383820327,1757131841991,-151.0,0.00069987,60]
[383820328,1757131842001,-4758.255128,0.00069987,30]
[383820329,1757131842010,-4758.255128,0.00069987,30]
[383820331,1757131842020,-4758.255128,0.00069987,30]
[383820333,1757131842030,-628.52,0.00069987,120]
[383820335,1757131842041,-628.52,0.00069987,120]
[383820337,1757131842050,-628.52,0.00069987,120]
[383820339,1757131842060,-628.52,0.00069987,120]
[383820341,1757131842070,-445.563269,0.00069987,120]
[383820343,1757131842080,-445.563269,0.00069987,120]
[383820345,1757131842090,-445.563269,0.00069987,120]
[383820347,1757131842099,-3341.04,0.00069987,120]
[383820349,1757131842109,-3341.04,0.00069987,120]
[383820351,1757131842118,-3341.04,0.00069987,120]
[383820353,1757131842128,-3341.04,0.00069987,120]
[383820355,1757131842137,-445.563269,0.00069987,120]
[383820357,1757131842147,-400.0,0.00069987,120]
[383820359,1757131842157,-400.0,0.00069987,120]
[383820361,1757131842167,-223.73871744,0.00069987,120]
[383820364,1757131842178,-400.0,0.00069987,120]
[383820366,1757131842188,-400.0,0.00069987,120]
[383820368,1757131842197,-547.59212823,0.00069987,120]
[383820370,1757131842207,-902.15,0.00069987,120]
[383820372,1757131842216,-902.15,0.00069987,120]
[383820374,1757131842225,-902.15,0.00069987,120]
[383820376,1757131842234,-151.0,0.00069987,120]
[383820378,1757131842244,-151.0,0.00069987,120]
[383820380,1757131842253,-150.0,0.00069987,120]
[383820382,1757131842263,-151.0,0.00069987,120]
[383820384,1757131842272,-6877.19,0.00069987,120]
[383820386,1757131842281,-6877.19,0.00069987,120]
[383820388,1757131842290,-6877.19,0.00069987,120]
[383820390,1757131842300,-6877.19,0.00069987,120]
[383820392,1757131842309,-150.0,0.00069987,120]
[383820394,1757131842319,-192.498229,0.00069987,120]
[383820396,1757131842329,-192.498229,0.00069987,120]
[383820398,1757131842338,-192.498229,0.00069987,120]
[383820400,1757131842347,-192.498229,0.00069987,120]
[383820402,1757131842357,-151.0,0.00069987,120]
[383820404,1757131842366,-151.0,0.00069987,120]
[383820406,1757131842376,-151.0,0.00069987,120]
[383820408,1757131842385,-151.0,0.00069987,30]
[383820410,1757131842395,-210.451656,0.00069987,30]
[383820412,1757131842404,-554316.0282302,0.00069988,6]
[383820414,1757131842413,-195601.9231062,0.00069988,6]
[383820416,1757131842423,-151.0,0.00069988,120]
[383820418,1757131842432,-151.0,0.00069988,120]
[383820420,1757131842441,-151.0,0.00069988,120]
[383820422,1757131842451,-151.0,0.00069988,120]
[383820424,1757131842460,-154.17726,0.00069988,120]
[383820426,1757131842469,-151.0,0.00069988,120]
[383820428,1757131842479,-151.0,0.00069988,120]
[383820430,1757131842488,-151.0,0.00069988,120]
[383820432,1757131842498,-151.0,0.00069988,120]
[383820434,1757131842507,-151.0,0.00069988,120]
[383820437,1757131842517,-151.0,0.00069988,120]
[383820439,1757131842526,-151.0,0.00069988,120]
[383820441,1757131842535,-151.0,0.00069988,120]
[383820443,1757131842545,-151.0,0.00069988,120]
[383820445,1757131842555,-151.0,0.00069988,120]
[383820447,1757131842567,-400.0,0.00069988,120]
[383820449,1757131842577,-157.658669,0.00069988,120]
[383820466,1757131842587,-500.0,0.00069988,120]
[383820468,1757131842720,-151.0,0.00069988,120]
[383820470,1757131842730,-151.0,0.00069988,120]
[383820472,1757131842740,-151.0,0.00069988,120]
[383820475,1757131842750,-151.0,0.00069988,120]
[383820478,1757131842759,-151.0,0.00069988,120]
[383820481,1757131842769,-151.0,0.00069988,120]
[383820484,1757131842779,-389.82046215,0.00069988,120]
[383820487,1757131842789,-151.0,0.00069988,120]
[383820489,1757131842798,-151.0,0.00069988,120]
[383820491,1757131842808,-152.811926,0.00069988,120]
[383820493,1757131842817,-200.0,0.00069988,120]
[383820495,1757131842827,-200.0,0.00069988,120]
[383820497,1757131842836,-200.0,0.00069988,120]
[383820499,1757131842845,-200.0,0.00069988,120]
[383820501,1757131842855,-200.0,0.00069988,120]
[383820503,1757131842864,-200.0,0.00069988,120]
[383820505,1757131842874,-200.0,0.00069988,120]
[383820507,1757131842884,-200.0,0.00069988,120]
[383820509,1757131842894,-200.0,0.00069988,120]
[383820511,1757131842903,-200.0,0.00069988,120]
[383820513,1757131842912,-200.0,0.00069988,120]
[383820515,1757131842921,-200.0,0.00069988,120]
[383820517,1757131842930,-200.0,0.00069988,120]
[383820519,1757131842939,-200.0,0.00069988,120]
[383820521,1757131842948,-200.0,0.00069988,120]
[383820523,1757131842957,-200.0,0.00069988,120]
[383820525,1757131842966,-200.0,0.00069988,120]
[383820527,1757131842975,-200.0,0.00069988,120]
[383820529,1757131842984,-200.0,0.00069988,120]
[383820531,1757131842994,-200.0,0.00069988,120]
[383820533,1757131843003,-200.0,0.00069988,120]